Cogmind - Beta 15 @@@ ROGUE MODE // 2025.07.20 @ 08:29:08 Player: Tuja Result: Destroyed by H-55 Commando with Gauss Rifle Performance ------------- Evolutions (2) 1000 Regions Visited (4) 800 Robots Destroyed (42) 210 Value Destroyed (1326) 1326 Prototype IDs (0) 0 Alien Tech Used (0) 0 Bonus (0) 0 TOTAL SCORE: 3336 Bonus ------- None Cogmind --------- Core Integrity 0/550 Matter 248/300 Energy 97/100 System Corruption 0% Temperature Cool (80) Movement Walking (260) Ox2 Location -8/Materials Parts ------- > --- POWER (1) -------- (None) > --- PROPULSION (3) --- Aluminum Leg > --- UTILITY (4) ------ Small Storage Unit Improved Signal Interpreter Improved Terrain Scanner Hardened Light Armor Plating > --- WEAPON (3) ------- Assault Cannon Flak Cannon Flak Cannon > --- INVENTORY (8) ---- Improved Heat Sink Hacking Suite Pulse Rifle Grenade Launcher Datajack Peak State ------------ > --- POWER ------------ Deuterium Engine > --- PROPULSION ------- Advanced Treads > --- UTILITY ---------- Small Storage Unit Improved Signal Interpreter Improved Weapon Shielding Hardened Light Armor Plating > --- WEAPON ----------- Beam Rifle Pulse Rifle Rocket Launcher > --- INVENTORY -------- Aluminum Leg Hardened Light Armor Plating Hacking Suite Flak Cannon Grenade Launcher Datajack [Rating: 23] Favorites ----------- Power Ion Engine Engine Ion Engine Propulsion Light Treads Treads Light Treads Leg Aluminum Leg Wheel Wheel Utility Small Storage Unit Device Tractor Beam Storage Small Storage Unit Processor Targeting Computer Protection Hardened Light Armor Plating Weapon Assault Rifle Energy Gun Small Laser Energy Cannon Ion Cannon Ballistic Gun Assault Rifle Ballistic Cannon Flak Cannon Launcher Rocket Launcher Special Weapon Mining Laser Impact Weapon Hammer Build | -11 -10 -10 -10 -8 ------- Run | Yrd Mat Min Sub Mat Slots Evolved 4 | . . . . 4 Power . | . . . . . Propulsion 1 | . . . . 1 Utility 2 | . . . . 2 Weapon 1 | . . . . 1 Parts Attached 35 | 6 1 1 4 23 Power 5 | 1 . 1 . 3 Engine 5 | 1 . 1 . 3 Core . | . . . . . Reactor . | . . . . . Propulsion 7 | 2 . . 2 3 Treads 3 | 2 . . . 1 Leg 2 | . . . . 2 Wheel 2 | . . . 2 . Hover . | . . . . . Flight . | . . . . . Utility 10 | 1 1 . . 8 Device 3 | . 1 . . 2 Storage 2 | 1 . . . 1 Processor 2 | . . . . 2 Hackware . | . . . . . Protection 3 | . . . . 3 Artifact . | . . . . . Weapon 13 | 2 . . 2 9 Energy Gun 3 | . . . . 3 Energy Cannon 1 | . . . . 1 Ballistic Gun 3 | 2 . . 1 . Ballistic Cannon 3 | . . . . 3 Launcher 1 | . . . . 1 Special Weapon 1 | . . . 1 . Impact Weapon 1 | . . . . 1 Slashing Weapon . | . . . . . Piercing Weapon . | . . . . . Special Melee Weapon . | . . . . . Unidentified Prototypes . | . . . . . Parts Lost 24 | . . 1 3 20 Power 5 | . . 1 . 4 Propulsion 5 | . . . 1 4 Utility 5 | . . . . 5 Weapon 9 | . . . 2 7 Highest Loss Streak 12 | . . 1 3 12 To Critical Strikes . | . . . . . Average Backups 6 | 3 4 6 8 6 Power . | . 1 . . . Propulsion 1 | 1 2 2 1 1 Utility . | . . . 1 1 Weapon 3 | . 1 4 5 2 Tool/Special . | . . . . . Unused Backups 4 | . . . . 4 Power . | . . . . . Propulsion . | . . . . . Utility 2 | . . . . 2 Weapon 1 | . . . . 1 Tool/Special 1 | . . . . 1 Average Slot Usage (%) 89 | . 90 99 96 74 Engine 11 | . 14 13 14 6 Treads 18 | . 28 28 24 2 Wheel 3 | . . . 2 7 Device 11 | . 5 14 14 9 Storage 11 | . 14 14 14 8 Processor 2 | . . . . 8 Protection 1 | . . . . 4 Energy Gun 3 | . . . . 9 Ballistic Gun 18 | . 28 28 25 4 Ballistic Cannon 1 | . . . . 4 Launcher 2 | . . . . 5 Peak Build Rating 23 | 6 7 7 7 23 Average Rating 9 | 4 6 6 6 15 On Entrance 5 | . 6 7 7 7 Naked Turns . | . . . . . Heaviest Build 34 | 14 15 15 15 34 Greatest Support 40 | 40 40 40 40 22 Greatest Overweight (x) 9 | . . . . 9 Average Overweight (x) . | . . . . . Largest Inventory Capacity 8 | 8 8 8 8 8 Average Capacity 7 | 7 8 8 8 7 Most Carried 8 | 5 6 8 8 8 Average Carried 6 | 3 4 6 7 6 Final Capacity 8 | 8 8 8 8 8 Final Carried 8 | 4 6 8 8 5 Class Distribution -------------------- 70% | Mutant 16% | Gunner 9% | Tank Dominant Class ---------------- Mutant | -10/Materials Mutant | -10/Mines Mutant | -10/Subcaves Gunner | -8/Materials Resources | -11 -10 -10 -10 -8 ----------- Run | Yrd Mat Min Sub Mat Matter Collected 1041 | 195 197 112 91 446 Remotely 374 | . 120 112 91 51 Salvage Created 1486 | . 278 124 122 962 Parts 85 | . 18 9 13 45 Haulers Intercepted 1 | . 1 . . . Recyclers Shooed 6 | . . . . 6 Parts Field Recycled . | . . . . . Retrieved Matter . | . . . . . Parts Self-Destructed 11 | . . . 11 . Prevented . | . . . . . Kills | -11 -10 -10 -10 -8 ------- Run | Yrd Mat Min Sub Mat Combat Hostiles Destroyed 35 | . 5 6 5 19 Melee 1 | . . . . 1 Guns 21 | . 5 6 5 5 Cannons 5 | . . . . 5 AOE 8 | . . . . 8 Classes Destroyed 9 | . 3 2 . 4 Worker 1 | . . . . 1 Hauler 1 | . 1 . . . Recycler 4 | . . . . 4 Watcher 1 | . 1 . . . Swarmer 8 | . . 5 3 . Grunt 17 | . 5 . 2 10 Duelist 1 | . . . . 1 Sentry 8 | . . 1 . 7 Hunter 1 | . . . . 1 Best Kill Streak 7 | . 7 3 3 6 Combat Bots Only 6 | . 5 3 3 6 Max Kills in Single Turn 2 | . 2 1 1 2 Gunslinging 1 | . 1 . . . Exploded 2 | . . . . 2 Melee 1 | . . . . 1 Uniques/NPCs Destroyed . | . . . . . Combat | -11 -10 -10 -10 -8 -------- Run | Yrd Mat Min Sub Mat Hostile Shots Fired 326 | . 33 41 18 234 Missed 68 | . 8 3 6 51 Hits 258 | . 25 38 12 183 Melee 2 | . . . . 2 Projectile 256 | . 25 38 12 181 Critical Strikes 9 | . . 2 . 7 Actively Blocked 2 | . . . . 2 Damage Taken 3454 | . 283 340 117 2714 Core 657 | . 34 32 24 567 Absorbed by Shields . | . . . . . Redirected to Shielding 97 | . . . . 97 Core Remaining (%) 82 | 100 . . 64 . Volleys Fired 104 | . 22 17 12 53 Largest 3 | . 2 2 2 3 Hottest 160 | . 40 40 100 160 Shots Fired 210 | . 44 34 18 114 Gun 152 | . 44 34 16 58 Cannon 48 | . . . . 48 Launcher 6 | . . . . 6 Special 4 | . . . 2 2 Kinetic 146 | . 44 34 16 52 Thermal 58 | . . . 2 56 Explosive 6 | . . . . 6 Electromagnetic . | . . . . . Robot Hit Streak 15 | . 7 11 3 15 Robot Miss Streak 7 | . 2 4 2 7 Penetration Max . | . . . . . Secondary Targets 6 | . 2 2 1 1 Max Gunslinging Chain 1 | . 1 1 1 1 Shots Hit Robots 153 | . 31 23 9 90 Core Hits 95 | 1 12 8 7 67 Critical Kills . | . . . . . Critical Parts Destroyed . | . . . . . Critical Strikes 3 | . . . . 3 Burn 3 | . . . . 3 Melee Attacks 5 | . . . . 5 Impact 5 | . . . . 5 Slashing . | . . . . . Piercing . | . . . . . Sneak Attacks . | . . . . . Combat Hostiles . | . . . . . Follow-up Attacks . | . . . . . Damage Inflicted 2905 | 2 386 294 116 2107 Guns 1335 | . 385 283 116 551 Cannons 638 | . . . . 638 Explosions 809 | . . . . 809 Melee 104 | . . . . 104 Ramming 19 | 2 1 11 . 5 Kinetic 1339 | . 385 283 116 555 Thermal 634 | . . . . 634 Explosive 809 | . . . . 809 Electromagnetic . | . . . . . Impact 104 | . . . . 104 Slashing . | . . . . . Piercing . | . . . . . Highest Corruption . | . . . . . Average Corruption . | . . . . . Corruption Purged . | . . . . . Corruption Blocked . | . . . . . Overload Shots . | . . . . . Overflow Damage 11 | . . . . 11 Projectiles . | . . . . . Explosions 11 | . . . . 11 Melee . | . . . . . Knockbacks 11 | . . . . 11 Impact . | . . . . . Kinetic 10 | . . . . 10 Secondary 1 | . . . . 1 Self-Inflicted Damage . | . . . . . Shots . | . . . . . Rammed 8 | 2 1 1 . 4 Targets Rammed 9 | 2 1 1 . 5 Kicked 1 | . . . . 1 Crushed . | . . . . . Highest Temperature 559 | . 5 20 . 559 Average Temperature 120 | . 5 10 . 128 Received Heat Transfer 1197 | . 150 63 30 954 Effects 11 | . . . . 11 Shutdowns 1 | . . . . 1 Energy Bleed 1 | . . . . 1 Interference 1 | . . . . 1 Matter Decay 1 | . . . . 1 Short Circuit 3 | . . . . 3 Damage (major) 4 | . . . . 4 Siege Activations . | . . . . . Martial Activations . | . . . . . Shielding Activations . | . . . . . Robots Disrupted . | . . . . . Combat Hostiles . | . . . . . Robots Corrupted . | . . . . . Combat Hostiles . | . . . . . Parts Fried . | . . . . . Impact Corruptions . | . . . . . Robots Melted . | . . . . . Combat Hostiles . | . . . . . Parts Melted 4 | . . . . 4 Heat Transferred 1631 | . . . . 1631 Parts Sabotaged . | . . . . . Parts Stolen . | . . . . . Parts Stripped . | . . . . . Power Chain Reactions . | . . . . . Alert | -11 -10 -10 -10 -8 ------- Run | Yrd Mat Min Sub Mat Maximum Alert Level . | . . . . . Low Security (%) 100 | 100 100 100 . 100 Level 1 . | . . . . . Level 2 . | . . . . . Level 3 . | . . . . . Level 4 . | . . . . . Level 5 . | . . . . . High Security . | . . . . . Max Security . | . . . . . Peak Influence 148 | . 90 50 . 148 Initial 21 | . . 21 . 10 Average 35 | . 46 8 . 66 Influence Increases 973 | . 132 140 120 581 Destroy 0b10 Robot/C 700 | . 100 120 100 380 Destroy 0b10 Robot/NC 35 | . 10 . . 25 Destroy Leader 164 | . 14 20 20 110 Successful Hack 8 | . 8 . . . Disable Machine 30 | . . . . 30 Destroy Structure 21 | . . . . 21 Lose Combat Pursuer 15 | . . . . 15 Influence Decreases 836 | . 77 195 100 464 Entered New Map 44 | . . 34 . 10 Time Decay 581 | . 77 160 90 254 Lost Part 211 | . . 1 10 200 Squads Dispatched 10 | . 1 . . 9 Investigation . | . . . . . Extermination . | . . . . . Reinforcement 4 | . 1 . . 3 Assault . | . . . . . Garrison 6 | . . . . 6 Intercept . | . . . . . Searches Triggered . | . . . . . Construction Impeded 2 | . . . . 2 Haulers Reinforced . | . . . . . Active Scanning Responses . | . . . . . Cargo Convoy Interrupts . | . . . . . Stealth | -11 -10 -10 -10 -8 --------- Run | Yrd Mat Min Sub Mat Distress Signals 2 | . . . . 2 Communications Jammed . | . . . . . Distress Signals . | . . . . . Times Spotted 47 | . 6 7 6 28 Peak Tracking Total 9 | . 3 3 3 9 Tactical Retreats 1 | . . . . 1 Traps | -11 -10 -10 -10 -8 ------- Run | Yrd Mat Min Sub Mat Traps Triggered . | . . . . . Indirectly . | . . . . . Trap Hack Attempts . | . . . . . Triggered . | . . . . . Disarmed . | . . . . . Reprogrammed . | . . . . . Reused . | . . . . . Traps Extracted . | . . . . . Installed . | . . . . . Triggered . | . . . . . Machines | -11 -10 -10 -10 -8 ---------- Run | Yrd Mat Min Sub Mat Machines Disabled 2 | . . . . 2 Max in Single Turn 1 | . . . . 1 Machines Repaired . | . . . . . Machines Dismantled . | . . . . . Machines Sabotaged . | . . . . . Overloaded Fab Kills . | . . . . . Hacking | -11 -10 -10 -10 -8 --------- Run | Yrd Mat Min Sub Mat Machines Accessed 5 | . 1 1 . 3 Terminals 3 | . 1 . . 2 Fabricators . | . . . . . Repair Stations . | . . . . . Recycling Units . | . . . . . Scanalyzers 1 | . . . . 1 Garrison Access . | . . . . . Total Hacks 9 | . 2 1 . 6 Successful 6 | . 1 1 . 4 Failed 3 | . 1 . . 2 Catastrophic 1 | . . . . 1 Database Lockouts . | . . . . . Manual 2 | . 2 . . . Terminals 5 | . 2 . . 3 Fabricators . | . . . . . Repair Stations . | . . . . . Recycling Units . | . . . . . Scanalyzers 3 | . . . . 3 Garrison Access . | . . . . . Terminal Hacks 3 | . 1 1 . 1 Robot Analysis 1 | . . . . 1 Open Door 1 | . . 1 . . Branch Access Points 1 | . 1 . . . Fabricator Hacks . | . . . . . Repair Station Hacks . | . . . . . Recycling Unit Hacks . | . . . . . Scanalyzer 3 | . . . . 3 Insert Component 1 | . . . . 1 Analyze 2 | . . . . 2 Garrison Access Hacks . | . . . . . Unauthorized Hacks . | . . . . . Terminals . | . . . . . Fabricators . | . . . . . Repair Stations . | . . . . . Recycling Units . | . . . . . Scanalyzers . | . . . . . Garrison Access . | . . . . . Data Cores Recovered . | . . . . . Used . | . . . . . Hacking Detections 3 | . . . . 3 Full Trace Events . | . . . . . Feedback Events . | . . . . . Feedback Blocked . | . . . . . Robot Schematics Acquired . | . . . . . Robots Built . | . . . . . Authchips . | . . . . . Time . | . . . . . Total Robot Build Rating . | . . . . . Part Schematics Acquired 1 | . . . . 1 Parts Built . | . . . . . Authchips . | . . . . . Time . | . . . . . Total Part Build Rating . | . . . . . Parts Repaired . | . . . . . Time . | . . . . . Parts Recycled . | . . . . . Recycled Matter . | . . . . . Retrieved Matter . | . . . . . Retrieved Components . | . . . . . Parts Scanalyzed 1 | . . . . 1 Part Schematics Acquired 1 | . . . . 1 Parts Damaged . | . . . . . Bothacking | -11 -10 -10 -10 -8 ------------ Run | Yrd Mat Min Sub Mat Used RIF Installer . | . . . . . Robots Hacked . | . . . . . Non-combat . | . . . . . Combat . | . . . . . Robot Hacks Applied . | . . . . . Relay Couplers Released . | . . . . . Fabnet Peak Effective % . | . . . . . Robots Rewired . | . . . . . Allies Hacked . | . . . . . Hacks Repelled . | . . . . . Allies | -11 -10 -10 -10 -8 -------- Run | Yrd Mat Min Sub Mat Total Allies . | . . . . . Largest Group . | . . . . . Highest-Rated Group . | . . . . . Highest-Rated Ally . | . . . . . Total Orders . | . . . . . Ally Attacks . | . . . . . Total Damage . | . . . . . Kills . | . . . . . Allies Corrupted . | . . . . . Allies Melted . | . . . . . Intel | -11 -10 -10 -10 -8 ------- Run | Yrd Mat Min Sub Mat Active Infowar (turns) 539 | . . . . 539 Optics 388 | . . . . 388 Terrain 151 | . . . . 151 Robot Analysis Total 1 | . . . . 1 Derelict Logs Recovered 3 | . . 1 2 . Drone Launches . | . . . . . Drone Recoveries . | . . . . . Exploration | -11 -10 -10 -10 -8 ------------- Run | Yrd Mat Min Sub Mat Turns Passed 2504 | 87 206 954 379 878 Spaces Moved 1249 | 58 84 510 223 374 Core 28 | 22 . . . 6 Treads 899 | 36 84 510 176 93 Legs 47 | . . . . 47 Wheels 275 | . . . 47 228 Hover . | . . . . . Flight . | . . . . . Fastest Speed 50 | 50 160 160 80 80 Average Speed 147 | 118 160 160 143 133 Slowest Speed 500 | 160 160 160 160 500 Overloaded Moves . | . . . . . Propulsion Burnouts . | . . . . . Robots Hopped . | . . . . . Potential Cave-ins . | . . . . . Cave-ins Triggered . | . . . . . Exploration Rate (%) 36 | 4 19 98 26 33 Regions Visited 4 Branch Regions 2 Pre-discovered Areas 1 | . . 1 . . Known Exits Taken 1 | . 1 . . . Unknown Exits Taken 3 | 1 . 1 1 . Scrap Searched 1 | . . 1 . . Spaces Dug 1 | . . . . 1 Terrain Destroyed 27 | . . . . 27 Melee . | . . . . . Projectile 5 | . . . . 5 AOE 22 | . . . . 22 Terrain Rammed . | . . . . . Walls Destroyed . | . . . . . Machines Disabled . | . . . . . Actions | -11 -10 -10 -10 -8 --------- Run | Yrd Mat Min Sub Mat Total 1699 | 75 111 614 259 640 Wait 257 | . 1 83 16 157 Move 1245 | 57 83 509 222 374 Hop . | . . . . . Pick Up 39 | 10 3 3 3 20 Fast Attach . | . . . . . Attach 33 | 6 1 1 2 23 Detach . | . . . . . Swap 6 | . . . 3 3 Drop 1 | . . . 1 . Fire 104 | . 22 17 12 53 Melee 5 | . . . . 5 Ram . | . . . . . Kick 1 | . . . . 1 Crush 8 | 2 1 1 . 4 Escape Stasis . | . . . . . Rewire . | . . . . . Trap . | . . . . . Miscellaneous . | . . . . . Route ------- -11/Scrapyard -10/Materials -10/Mines (discovered 2 exits: [*Mat] / [*Sub]) -10/Subcaves -8/Materials (discovered 1 exit: Fac) History --------- Turn | Location | Event 42 | -11/Scrapyard | Discovered new exit (range 14) 88 | -11/Scrapyard | Entered Materials 251 | -10/Materials | Identified exit to Mines 294 | -10/Materials | Entered Mines 312 | -10/Mines | Build established: Mutant 319 | -10/Mines | Met a Derelict bent on vengeance 367 | -10/Mines | Found a hidden stash of uninstalled traps 370 | -10/Mines | Discovered new exit (range 15) 512 | -10/Mines | Learned location of Storage (-7) 739 | -10/Mines | Met a Derelict who couldn't figure out how to use a Trap Extractor 785 | -10/Mines | Received a Rocket Launcher from a helpful Derelict 977 | -10/Mines | Discovered new exit (range 5) 1084 | -10/Mines | Joined a pair of Derelicts in attacking an 0b10 outpost 1248 | -10/Mines | Entered Subcaves 1249 | -10/Subcaves | Approached by a straggling Scientist 1255 | -10/Subcaves | Learned Materials emergency access door positions 1330 | -10/Subcaves | A swath of the cavern ceiling suddenly collapsed 1412 | -10/Subcaves | Learned location of 1 exit from Materials 1427 | -10/Subcaves | Shifting Twisted Machinery released Mak. Sword 1430 | -10/Subcaves | Shifting Twisted Machinery released Flamer 1555 | -10/Subcaves | A swath of the cavern ceiling suddenly collapsed 1605 | -10/Subcaves | Lost 3 parts (1n2w) 1618 | -10/Subcaves | Discovered new exit (range 15) 1627 | -10/Subcaves | Shifting Twisted Machinery released Sub. Power Source 1627 | -10/Subcaves | Shifting Twisted Machinery released Scrap Shield 1627 | -10/Subcaves | Entered Materials 1627 | -8/Materials | Evolved 4 slots: Propulsion x1, Utility x2, Weapon x1 1628 | -8/Materials | Identified exit to Factory 1936 | -8/Materials | Build established: Gunner 2051 | -8/Materials | Core integrity fell below 50% 2081 | -8/Materials | Lost 12 parts (2p1n4u5w) 2289 | -8/Materials | Garrison activated, responded to threat 2333 | -8/Materials | Core integrity fell below 20% 2469 | -8/Materials | Lost 3 parts (1p1n1w) 2505 | -8/Materials | Destroyed by H-55 Commando with Gauss Rifle Last Messages --------------- 02418_ Acquired 44 matter. 02420_ K-01 Serf collects debris. 02422_ H-55 Commando knocked back. 02426_ Penetrated by Slug. 02427_ Lgt. Ion Engine destroyed. 02427_ Acquired 5 matter. 02429_ H-55 Commando knocked back. 02429_ Penetrated by Slug. 02432_ H-55 Commando destroyed. 02436_ Acquired 2 matter. 02438_ Aluminum Leg destroyed. 02439_ U-05 Engineer builds a Wall. 02442_ Acquired 33 matter. 02444_ Penetrated by Slug. 02466_ Slug penetrates Wall. 02482_ Penetrated by Slug. 02493_ Slug penetrates Wall. 02499_ G-47 Trooper knocked back. 02502_ Slug penetrates Wall. 02503_ G-47 Trooper knocked back. Map ----- +----------------------------------------------------+ | """ #??# ########??????? | | """ #??# #?????????????? | | """ ##############?????????????? | | ## %%% %#????????????????? | | # "%%%"#????????????????? | | """ """ / %%" "#?#??????????????? | | """"""""" # """"%#????????????????? | | """"" # """""#??????????? ????? | | # """""#???+????????????? | | # """""#?? ?????????????? | | # """""##???????????????? | | %* # ??????????????????? | | ! ** % #####+##?????? ???????????? | | #######+## " ???? | | % ??? | | ######## ] ??? | | # ##+##########??? ??? | | ! %# "" ^!!/ # #???? ??????? | | !% # " !// # """ #??????? ???? | | = # "" # """ #???????????? | | % %+% # """ #???????????? | | # # ! =#???????????? | | # ##+###### ! h#???????????? | | ## ## ######+;#???????????? | | ######### ## ! #???## #????????????? | | ! + ## ##???#@#????????????? | | # ## #????# +???????????? | | # + #????####???????????? | | ! # ## ! #???#???????????????? | | ! # ## #???????????????????? | | # ## #?????????#??????#??? | | # + #???????????????????? | | / + ## #???????????????????? | | ############# #????????????#??????? | | ????????????# #???????????????????? | | ??????#?????# / #???????????????????? | | ????????????########????????????#??????? | | ?????????????????????????#?????????????? | | ???????????????????????????????????????? | | | | | | | | | | | | | | | | | | | | | | | +----------------------------------------------------+ Best States ------------- Heat Dissipation 31 Energy Generation 14 Energy Capacity 275 Matter Stores 300 Matter Capacity 300 Sight Range 21 Terrain Scan Range 16 Terrain Scan Density 10 Armor Coverage 300 Weapon Shielding 66 Evasion (%) 44 Targeting Accuracy 5 Recoil Reduction 2 Item Schematics ----------------- Adv. Treads | -8/Materials | Scanalyzed Robot Schematics ------------------ None Fabricated ------------ Nothing Repaired ---------- Nothing Alien Tech Used ----------------- None Achievements -------------- More Dakka Please Challenges ------------ None Game ------ Seed HeavyCryofiberBlade Manual? 0 Play Time 00:25:17 Cumulative 32.5 hours Start 2025.07.19 @ 19:32:21 End 2025.07.20 @ 08:29:08 Sessions 3 Manual Loads 0 Difficulty Rogue Special Mode None Game No. 15 Rogue 11 Adventurer 4 Explorer 0 Win Type - Total 0 Types 0/0/0/0/0/0/0/0/0/0 Lore% 23 Gallery% 28 Achievement% 25 Wizard Run 0 Options --------- Layout 1 ASCII 0 Keyboard 0 Movement Numpad Keybinds 1 Fullscreen 1 Font 24/Smallcaps Map View 50x35 Zoom Use 0% Tactical HUD 1 Map Filters NONE Filters NONE Steam 1 RUN: 3427b233-8f8c-47c1-bcf7-0cfe42441f66